Cogmind - Beta 10.2 @@@ ROGUE MODE // 2021.08.16 @ 18:03:04 Player: Gilgameshx13 Result: Self-destructed Performance ------------- Evolutions (1) 500 Regions Visited (2) 400 Robots Destroyed (2) 10 Value Destroyed (79) 79 Prototype IDs (0) 0 Alien Tech Used (0) 0 Bonus (200) 200 TOTAL SCORE: 1189 Bonus ------- Pacifist 200 Cogmind --------- Core Integrity 289/400 Matter 300/300 Energy 67/100 System Corruption 0% Temperature Cool (1) Movement Core (400) Ox7 Location -9/Materials Parts ------- > --- POWER (1) -------- (None) > --- PROPULSION (2) --- (None) > --- UTILITY (4) ------ Large Storage Unit Improved Signal Interpreter Terrain Scanner Hardened Light Armor Plating > --- WEAPON (2) ------- EM Pulse Gun > --- INVENTORY (10) --- Ion Engine Aluminum Leg Aluminum Leg Wheel Heat Sink Peak State ------------ > --- POWER ------------ Light Ion Engine > --- PROPULSION ------- Compact Wheel > --- UTILITY ---------- Large Storage Unit Improved Signal Interpreter Terrain Scanner > --- WEAPON ----------- EM Pulse Gun Light Assault Rifle > --- INVENTORY -------- Ion Engine Aluminum Leg Aluminum Leg Wheel Heat Sink EM Pulse Gun [Rating: 8] Favorites ----------- Power Light Ion Engine Engine Light Ion Engine Propulsion Compact Wheel Wheel Compact Wheel Utility Terrain Scanner Device Terrain Scanner Storage Large Storage Unit Processor Improved Signal Interpreter Protection Hardened Light Armor Plating Weapon Light Assault Rifle Energy Gun EM Pulse Gun Ballistic Gun Light Assault Rifle Build | -11 -10 -9 ------- Run | Scr Mat Mat Slots Evolved 2 | . . 2 Power . | . . . Propulsion . | . . . Utility 2 | . . 2 Weapon . | . . . Parts Attached 10 | 5 2 3 Power 1 | 1 . . Engine 1 | 1 . . Core . | . . . Reactor . | . . . Propulsion 1 | 1 . . Treads . | . . . Leg . | . . . Wheel 1 | 1 . . Hover . | . . . Flight . | . . . Utility 5 | 1 2 2 Device 1 | . 1 . Storage 2 | 1 1 . Processor 1 | . . 1 Hackware . | . . . Protection 1 | . . 1 Artifact . | . . . Weapon 3 | 2 . 1 Energy Gun 2 | 1 . 1 Energy Cannon . | . . . Ballistic Gun 1 | 1 . . Ballistic Cannon . | . . . Launcher . | . . . Special Weapon . | . . . Impact Weapon . | . . . Slashing Weapon . | . . . Piercing Weapon . | . . . Special Melee Weapon . | . . . Unidentified Prototypes . | . . . Parts Lost 4 | . . 4 Power 1 | . . 1 Propulsion 1 | . . 1 Utility . | . . . Weapon 2 | . . 2 Highest Loss Streak 2 | . . 2 Average Slot Usage (%) 69 | . 74 66 Engine 10 | . 14 7 Wheel 12 | . 14 10 Device 7 | . 3 11 Storage 12 | . 14 11 Processor 4 | . . 8 Energy Gun 10 | . 14 7 Ballistic Gun 11 | . 14 9 Naked Turns . | . . . Heaviest Build 24 | 10 23 24 Greatest Support 16 | 16 16 16 Greatest Overweight (x) 7 | . 1 7 Average Overweight (x) . | . . 1 Largest Inventory Capacity 10 | 6 10 10 Average Capacity 8 | 5 6 10 Most Carried 7 | 5 6 7 Average Carried 5 | 3 5 6 Final Capacity 10 | 6 10 10 Final Carried 6 | 5 6 5 Class Distribution -------------------- 100% | Mutant Dominant Class ---------------- Mutant | -10/Materials Mutant | -9/Materials Resources | -11 -10 -9 ----------- Run | Scr Mat Mat Matter Collected 285 | 211 . 74 Remotely . | . . . Salvage Created 103 | . . 103 Parts 4 | . . 4 Haulers Intercepted . | . . . Recyclers Shooed . | . . . Parts Field Recycled . | . . . Retrieved Matter . | . . . Parts Self-Destructed . | . . . Prevented . | . . . Kills | -11 -10 -9 ------- Run | Scr Mat Mat Combat Hostiles Destroyed 2 | . . 2 Guns 2 | . . 2 Classes Destroyed 2 | . . 2 Grunt 1 | . . 1 Sentry 1 | . . 1 Best Kill Streak 1 | . . 1 Combat Bots Only 1 | . . 1 Max Kills in Single Turn 1 | . . 1 Gunslinging . | . . . Exploded . | . . . Melee . | . . . Uniques/NPCs Destroyed . | . . . Combat | -11 -10 -9 -------- Run | Scr Mat Mat Damage Taken 449 | . . 449 Core 111 | . . 111 Absorbed by Shields . | . . . Core Remaining (%) 100 | 100 100 . Volleys Fired 7 | . . 7 Largest 1 | . . 1 Hottest 40 | . . 40 Shots Fired 7 | . . 7 Gun 7 | . . 7 Cannon . | . . . Launcher . | . . . Special . | . . . Kinetic 5 | . . 5 Thermal . | . . . Explosive . | . . . Electromagnetic 2 | . . 2 Robot Hit Streak 5 | . . 5 Robot Miss Streak 1 | . . 1 Penetration Max . | . . . Secondary Targets . | . . . Shots Hit Robots 6 | . . 6 Core Hits 5 | . . 5 Critical Hits . | . . . Critical Kills . | . . . Critical Parts Destroyed . | . . . Melee Attacks . | . . . Impact . | . . . Slashing . | . . . Piercing . | . . . Sneak Attacks . | . . . Combat Hostiles . | . . . Follow-up Attacks . | . . . Damage Inflicted 57 | . . 57 Guns 57 | . . 57 Cannons . | . . . Explosions . | . . . Melee . | . . . Ramming . | . . . Kinetic 32 | . . 32 Thermal . | . . . Explosive . | . . . Electromagnetic 25 | . . 25 Impact . | . . . Slashing . | . . . Piercing . | . . . Highest Corruption . | . . . Average Corruption . | . . . Corruption Purged . | . . . Overload Shots . | . . . Overflow Damage . | . . . Projectiles . | . . . Explosions . | . . . Melee . | . . . Knockbacks . | . . . Impact . | . . . Kinetic . | . . . Secondary . | . . . Self-Inflicted Damage . | . . . Shots . | . . . Rammed . | . . . Targets Rammed . | . . . Kicked . | . . . Crushed . | . . . Highest Temperature 12 | . . 12 Average Temperature 5 | . . 5 Received Heat Transfer 186 | . . 186 Siege Activations . | . . . Robots Corrupted . | . . . Combat Hostiles . | . . . Parts Fried . | . . . Impact Corruptions . | . . . Robots Melted . | . . . Combat Hostiles . | . . . Parts Melted . | . . . Heat Transferred . | . . . Parts Sabotaged . | . . . Parts Stolen . | . . . Parts Stripped . | . . . Power Chain Reactions . | . . . Missiles Intercepted . | . . . Alert | -11 -10 -9 ------- Run | Scr Mat Mat Peak Influence 95 | . . 95 Initial . | . . . Average 12 | . . 26 Maximum Alert Level . | . . . Low Security (%) 100 | 100 100 100 Level 1 . | . . . Level 2 . | . . . Level 3 . | . . . Level 4 . | . . . Level 5 . | . . . High Security . | . . . Max Security . | . . . Squads Dispatched 1 | . . 1 Investigation . | . . . Extermination . | . . . Reinforcement 1 | . . 1 Assault . | . . . Garrison . | . . . Intercept . | . . . Construction Impeded . | . . . Haulers Reinforced . | . . . Stealth | -11 -10 -9 --------- Run | Scr Mat Mat Distress Signals 1 | . . 1 Communications Jammed . | . . . Distress Signals . | . . . Times Spotted 13 | . . 13 Peak Tracking Total 11 | . 1 11 Tactical Retreats . | . . . Traps | -11 -10 -9 ------- Run | Scr Mat Mat Traps Triggered . | . . . Indirectly . | . . . Trap Hack Attempts . | . . . Triggered . | . . . Disarmed . | . . . Reprogrammed . | . . . Reused . | . . . Traps Extracted . | . . . Installed . | . . . Triggered . | . . . Machines | -11 -10 -9 ---------- Run | Scr Mat Mat Machines Disabled . | . . . Max in Single Turn . | . . . Machines Sabotaged . | . . . Garrisons Compromised . | . . . Overloaded Fab Kills . | . . . Fab Network Shutdowns . | . . . Hacking | -11 -10 -9 --------- Run | Scr Mat Mat Machines Accessed . | . . . Terminals . | . . . Fabricators . | . . . Repair Stations . | . . . Recycling Units . | . . . Scanalyzers . | . . . Garrison Access . | . . . Total Hacks . | . . . Successful . | . . . Failed . | . . . Catastrophic . | . . . Database Lockouts . | . . . Manual . | . . . Terminals . | . . . Fabricators . | . . . Repair Stations . | . . . Recycling Units . | . . . Scanalyzers . | . . . Garrison Access . | . . . Terminal Hacks . | . . . Fabricator Hacks . | . . . Repair Station Hacks . | . . . Recycling Unit Hacks . | . . . Scanalyzer . | . . . Garrison Access Hacks . | . . . Unauthorized Hacks . | . . . Terminals . | . . . Fabricators . | . . . Repair Stations . | . . . Recycling Units . | . . . Scanalyzers . | . . . Garrison Access . | . . . Data Cores Recovered . | . . . Used . | . . . Hacking Detections . | . . . Full Trace Events . | . . . Feedback Events . | . . . Feedback Blocked . | . . . Robot Schematics Acquired . | . . . Robots Built . | . . . Matter . | . . . Time . | . . . Total Robot Build Rating . | . . . Part Schematics Acquired . | . . . Parts Built . | . . . Matter . | . . . Time . | . . . Total Part Build Rating . | . . . Parts Repaired . | . . . Time . | . . . Parts Recycled . | . . . Recycled Matter . | . . . Retrieved Matter . | . . . Retrieved Components . | . . . Parts Scanalyzed . | . . . Part Schematics Acquired . | . . . Parts Damaged . | . . . Bothacking | -11 -10 -9 ------------ Run | Scr Mat Mat Used RIF Installer . | . . . Robots Hacked . | . . . Non-combat . | . . . Combat . | . . . Robot Hacks Applied . | . . . Relay Couplers Released . | . . . Robots Rewired . | . . . Allies Hacked . | . . . Hacks Repelled . | . . . Allies | -11 -10 -9 -------- Run | Scr Mat Mat Total Allies . | . . . Largest Group . | . . . Highest-Rated Group . | . . . Highest-Rated Ally . | . . . Total Orders . | . . . Ally Attacks . | . . . Total Damage . | . . . Kills . | . . . Allies Corrupted . | . . . Allies Melted . | . . . Intel | -11 -10 -9 ------- Run | Scr Mat Mat Robot Analysis Total . | . . . Derelict Logs Recovered . | . . . Drone Launches . | . . . Drone Recoveries . | . . . Exploration | -11 -10 -9 ------------- Run | Scr Mat Mat Turns Passed 369 | 59 142 168 Spaces Moved 318 | 51 134 133 Core 14 | 13 . 1 Treads . | . . . Legs . | . . . Wheels 304 | 38 134 132 Hover . | . . . Flight . | . . . Fastest Speed 50 | 50 100 110 Average Speed 103 | 87 101 112 Slowest Speed 400 | 100 110 400 Overloaded Moves . | . . . Propulsion Burnouts . | . . . Robots Hopped . | . . . Cave-ins Triggered . | . . . Exploration Rate (%) 15 | 3 24 20 Regions Visited 2 Branch Regions . Pre-discovered Areas . | . . . Known Exits Taken . | . . . Unknown Exits Taken 2 | 1 1 . Scrap Searched . | . . . Spaces Dug . | . . . Terrain Destroyed . | . . . Melee . | . . . Projectile . | . . . AOE . | . . . Terrain Rammed . | . . . Walls Destroyed . | . . . Machines Disabled . | . . . Actions | -11 -10 -9 --------- Run | Scr Mat Mat Total 349 | 65 139 145 Wait . | . . . Move 316 | 50 133 133 Hop . | . . . Pick Up 15 | 10 3 2 Fast Attach . | . . . Attach 9 | 5 1 3 Detach . | . . . Swap 1 | . 1 . Drop 1 | . 1 . Fire 7 | . . 7 Melee . | . . . Ram . | . . . Kick . | . . . Crush . | . . . Escape Stasis . | . . . Rewire . | . . . Trap . | . . . Miscellaneous . | . . . Route ------- -11/Scrapyard -10/Materials -9/Materials History --------- Turn | Location | Event 27 | -11/Scrapyard | Discovered new exit (range 14) 60 | -11/Scrapyard | Entered Materials 158 | -10/Materials | Discovered new exit (range 16) 202 | -10/Materials | Entered another Materials area 202 | -9/Materials | Evolved 2 slots: Utility x2 302 | -9/Materials | Build established: Mutant 370 | -9/Materials | Self-destructed Last Messages --------------- T-07 Excavator is excavating. U-05 Engineer lays Concrete. EM Pulse Gun destroyed. U-05 Engineer lays Concrete. T-07 Excavator is excavating. Lgt. Ion Engine destroyed. T-07 Excavator is excavating. Y-45 Defender destroyed. K-01 Serf collects debris. Acquired Hrd. Light Armor Plating. Acquired 54 matter. K-01 Serf collects debris. W-16 Scout sends out distress signal. Lgt. Assault Rifle destroyed. C-30 ARC bursts open, deploying its payload. B-36 Bruiser unfolds itself. G-34 Mercenary unfolds itself. G-34 Mercenary destroyed. Com. Wheel destroyed. Acquired 20 matter. Map ----- +----------------------------------------------------+ | ?????????????????????????????????????????????????? | | ?????????????????????????????????????????????????? | | ?????????????????????????????????????????????????? | | ?????##??????????????????????????????????????????? | | ??????# ?????????????????????????????????????????? | | ??????# ?????????????????????????????????????????? | | ??????# ???????????????#?????????????????????????? | | ??????# ?????????????????????????????????????????? | | ????### ####?????????????????????????????????????? | | ????? #?????#???????????????????????????????? | | ?????? #?????????????????????????????????????? | | ??????? #????????????? ???????????????????????? | | ???????# #???????????????? ? ??????????????????? | | ???????# #?????????????????????????????????????? | | ???????# #??????????#####??????????????????????? | | ??????## ############ #??????????????????????? | | ???#??# g #??????????????????????? | | ??????# ###########gg #????"?????????????????? | | ??????# = #????????## #?????? ???????????????? | | ??????# #?????????#g #??????????????????????? | | ??????# #?????????# #???? ?????#???????????? | | ??????## #########??# #??????????????????????? | | ?????### # """ #??# #??????????????????????? | | ?????# # # "T" #??# #??????????????????????? | | ?????# + #??# =####### #????????????? | | ????# # # #??# @b #????????????? | | ????#### # [ rk * #????????????? | | ???????# #?########## g #????????????? | | ??#?#### #?#????????######g ###????????????? | | ???##!! #???????????????? %#??????????????? | | ???#! #?????????"??????? #??????????????? | | ???#! #????????????????? #??????????????? | | ???#! #?????????????????? #??????????????? | | ???#! #??????????????????? #??????????????? | | ???##!! #??????????????????? #??????????????? | | ????#### #???????????????????? ??????????????? | | ???????# #????????????????????? ?????????????? | | ??#????# #????????????????? ???????????????????? | | ???????# #?????????????????????????????????????? | | ???????# #??######?????????????????????????????? | | ???#???# #? ?????????????????????????????? | | ???????# # ????????????????????????????? | | ???????# # #???????????????????????????? | | ???????# # ##??????????????????????????? | | ???????# # """ """ #???????????????????????????? | | #?#?#??# / """ """ #???????????????????????????? | | ???????# # """ """ ???#????????????????????????? | | ???????# # ??????????????????????????????? | | ######## #####+##############??????????????????? | | ?????????????????? | +----------------------------------------------------+ Best States ------------- Heat Dissipation 28 Energy Generation 10 Energy Capacity 125 Matter Stores 300 Matter Capacity 300 Sight Range 16 Terrain Scan Range 14 Terrain Scan Density 10 Armor Coverage 150 Evasion (%) 40 Item Schematics ----------------- None Robot Schematics ------------------ None Fabricated ------------ Nothing Alien Tech Used ----------------- None Achievements -------------- None Challenges ------------ None Game ------ Seed VariableHugeMace Manual? 0 Play Time 00:05:30 Cumulative 19.8 hours Start 2021.08.16 @ 17:59:13 End 2021.08.16 @ 18:03:04 Sessions 1 Manual Loads 0 Difficulty Rogue Special Mode None Game No. 48 Rogue 28 Adventurer 20 Explorer 0 Win Type - Total 1 Types 1/0/0/0/0/0/0/0/0 Lore% 18 Gallery% 42 Achievement% 30 Wizard Run 0 Options --------- ASCII 0 Keyboard 0 Movement Arrows Keybinds 0 Fullscreen 1 Font 18/SmallcapsGlow Map View 76x50 Tactical HUD 0 Map Filters NONE Filters NONE Steam 1 RUN: a716749d-b1cc-4be5-8e32-ef3644eeb8d3